[Event "Late-Titled-Tuesday-Blitz-February-06-2024"]
[Site "Chess.com"]
[Date "2024.02.06"]
[Round "5"]
[White "Chessdude1987"]
[Black "ahkashefi2800"]
[Result "0-1"]
[WhiteElo "2303"]
[BlackElo "2535"]
[TimeControl "180+1"]
[EndTime "14:54:10 PST"]
[Termination "ahkashefi2800 won on time"]

1. e4 {[%clk 0:03:00.9]} 1... c6 {[%clk 0:02:59.7]} 2. d4 {[%clk 0:02:59.1]}
2... d5 {[%clk 0:03:00.1]} 3. Nd2 {[%clk 0:02:59.7]} 3... dxe4 {[%clk
0:03:00.3]} 4. Nxe4 {[%clk 0:03:00.6]} 4... Nd7 {[%clk 0:02:59.6]} 5. Bc4 {[%clk
0:02:57.3]} 5... Ngf6 {[%clk 0:02:59.4]} 6. Nxf6+ {[%clk 0:02:57.3]} 6... Nxf6
{[%clk 0:02:59.8]} 7. Nf3 {[%clk 0:02:56.8]} 7... Bf5 {[%clk 0:03:00.3]} 8. O-O
{[%clk 0:02:55.4]} 8... e6 {[%clk 0:03:00.7]} 9. Re1 {[%clk 0:02:55.1]} 9... Bg4
{[%clk 0:03:00.7]} 10. c3 {[%clk 0:02:54.5]} 10... Bd6 {[%clk 0:03:00.9]} 11. h3
{[%clk 0:02:54.5]} 11... Bh5 {[%clk 0:03:01.1]} 12. Bg5 {[%clk 0:02:51.8]} 12...
Qa5 {[%clk 0:03:00.2]} 13. Bxf6 {[%clk 0:02:38]} 13... gxf6 {[%clk 0:03:00.2]}
14. g4 {[%clk 0:02:37.4]} 14... Rg8 {[%clk 0:02:57]} 15. Kf1 {[%clk 0:02:32.1]}
15... Bg6 {[%clk 0:02:56.5]} 16. b4 {[%clk 0:02:13.3]} 16... Qc7 {[%clk
0:02:49]} 17. Nh4 {[%clk 0:01:58.6]} 17... O-O-O {[%clk 0:02:48.9]} 18. b5
{[%clk 0:01:49.2]} 18... c5 {[%clk 0:02:43.1]} 19. b6 {[%clk 0:01:47.6]} 19...
axb6 {[%clk 0:02:35.3]} 20. Qa4 {[%clk 0:01:33.9]} 20... Kb8 {[%clk 0:02:27.7]}
21. Nxg6 {[%clk 0:01:19.7]} 21... hxg6 {[%clk 0:02:25.8]} 22. Rab1 {[%clk
0:01:18.2]} 22... Rh8 {[%clk 0:02:25.7]} 23. Re3 {[%clk 0:01:13.8]} 23... Bf4
{[%clk 0:02:25.4]} 24. Rf3 {[%clk 0:01:13.4]} 24... g5 {[%clk 0:02:23.8]} 25.
dxc5 {[%clk 0:01:04.9]} 25... Qxc5 {[%clk 0:02:24]} 26. Be2 {[%clk 0:00:31.9]}
26... Rd2 {[%clk 0:02:17.9]} 27. Qe4 {[%clk 0:00:22.8]} 27... Rhd8 {[%clk
0:02:12.4]} 28. a4 {[%clk 0:00:21.4]} 28... Ka7 {[%clk 0:02:05.3]} 29. a5 {[%clk
0:00:19.3]} 29... Qxa5 {[%clk 0:02:05.6]} 30. c4 {[%clk 0:00:16.5]} 30... Ra2
{[%clk 0:02:04.1]} 31. Rfb3 {[%clk 0:00:14.8]} 31... Rdd2 {[%clk 0:01:58.6]} 32.
Rxb6 {[%clk 0:00:08.8]} 32... Qxb6 {[%clk 0:01:56.9]} 33. Rxb6 {[%clk
0:00:07.8]} 33... Kxb6 {[%clk 0:01:57.2]} 34. Qb1+ {[%clk 0:00:07.4]} 34... Rab2
{[%clk 0:01:55.8]} 35. c5+ {[%clk 0:00:05.9]} 35... Kc7 {[%clk 0:01:55.9]} 36.
Qa1 {[%clk 0:00:02.8]} 36... Rxe2 {[%clk 0:01:55.3]} 37. Qa5+ {[%clk 0:00:02.8]}
37... Kd7 {[%clk 0:01:53.5]} 38. Qa7 {[%clk 0:00:02.3]} 38... Rxf2+ {[%clk
0:01:53.3]} 39. Ke1 {[%clk 0:00:02.6]} 39... Be3 {[%clk 0:01:42.7]} 40. c6+
{[%clk 0:00:02.4]} 40... Kxc6 {[%clk 0:01:40.2]} 41. Qa4+ {[%clk 0:00:02.2]}
41... Kd6 {[%clk 0:01:39.1]} 42. Qa3+ {[%clk 0:00:01.6]} 42... Bc5 {[%clk
0:01:38.9]} 0-1

[Event "Late-Titled-Tuesday-Blitz-February-06-2024"]
[Site "Chess.com"]
[Date "2024.02.06"]
[Round "5"]
[White "iwanyu"]
[Black "Squirlolz"]
[Result "1-0"]
[WhiteElo "2830"]
[BlackElo "2576"]
[TimeControl "180+1"]
[EndTime "14:54:17 PST"]
[Termination "iwanyu won by resignation"]

1. d4 {[%clk 0:03:00.9]} 1... Nf6 {[%clk 0:02:58.5]} 2. c4 {[%clk 0:03:01.5]}
2... c5 {[%clk 0:02:57]} 3. d5 {[%clk 0:03:01.2]} 3... e6 {[%clk 0:02:57.4]} 4.
Nc3 {[%clk 0:03:01.2]} 4... exd5 {[%clk 0:02:58.1]} 5. cxd5 {[%clk 0:03:02.1]}
5... d6 {[%clk 0:02:58.7]} 6. Nf3 {[%clk 0:03:01.8]} 6... g6 {[%clk 0:02:59]} 7.
Bf4 {[%clk 0:03:02.4]} 7... Bg7 {[%clk 0:02:58]} 8. h3 {[%clk 0:03:02.9]} 8...
O-O {[%clk 0:02:57.6]} 9. e3 {[%clk 0:03:03.5]} 9... Re8 {[%clk 0:02:50.4]} 10.
Nd2 {[%clk 0:03:02.8]} 10... Nbd7 {[%clk 0:02:45.1]} 11. Be2 {[%clk 0:02:56.1]}
11... Ne5 {[%clk 0:02:40.8]} 12. O-O {[%clk 0:02:55.6]} 12... Nfd7 {[%clk
0:02:17.5]} 13. e4 {[%clk 0:02:46.8]} 13... Rb8 {[%clk 0:02:09.7]} 14. Bg3
{[%clk 0:02:38.8]} 14... g5 {[%clk 0:02:06.1]} 15. Nb5 {[%clk 0:02:27.4]} 15...
Nb6 {[%clk 0:01:48.5]} 16. Nxa7 {[%clk 0:02:22.8]} 16... Bd7 {[%clk 0:01:48.6]}
17. Nb5 {[%clk 0:02:21.7]} 17... Bxb5 {[%clk 0:01:42.9]} 18. Bxb5 {[%clk
0:02:22.6]} 18... Rf8 {[%clk 0:01:43.2]} 19. a4 {[%clk 0:02:19]} 19... Ra8
{[%clk 0:01:41.9]} 20. Re1 {[%clk 0:02:08.8]} 20... Nbd7 {[%clk 0:01:34.6]} 21.
Nf1 {[%clk 0:02:05.2]} 21... f5 {[%clk 0:01:28.7]} 22. exf5 {[%clk 0:02:01.7]}
22... Rxf5 {[%clk 0:01:29.6]} 23. Ne3 {[%clk 0:02:01.7]} 23... Rf7 {[%clk
0:01:28.4]} 24. Ra3 {[%clk 0:01:49.6]} 24... Nf8 {[%clk 0:01:18.1]} 25. Ng4
{[%clk 0:01:45.3]} 25... Nfg6 {[%clk 0:01:12.1]} 26. Rae3 {[%clk 0:01:21.7]}
26... Qf8 {[%clk 0:01:05.2]} 27. b3 {[%clk 0:01:16.1]} 27... Nf4 {[%clk
0:01:02.5]} 28. Nxe5 {[%clk 0:01:13.8]} 28... Bxe5 {[%clk 0:01:02.5]} 29. Rxe5
{[%clk 0:00:55]} 29... dxe5 {[%clk 0:01:02.2]} 30. d6 {[%clk 0:00:54.9]} 30...
Rf6 {[%clk 0:00:38.4]} 31. d7 {[%clk 0:00:51.3]} 31... Qe7 {[%clk 0:00:33.1]}
32. Qg4 {[%clk 0:00:45]} 32... h6 {[%clk 0:00:28.5]} 33. h4 {[%clk 0:00:45.1]}
33... Rd6 {[%clk 0:00:27.1]} 34. Bxf4 {[%clk 0:00:42.6]} 1-0

[Event "Late-Titled-Tuesday-Blitz-February-06-2024"]
[Site "Chess.com"]
[Date "2024.02.06"]
[Round "5"]
[White "AldokhinIvan"]
[Black "K_A_S_T_O_R"]
[Result "0-1"]
[WhiteElo "2620"]
[BlackElo "2881"]
[TimeControl "180+1"]
[EndTime "14:54:17 PST"]
[Termination "K_A_S_T_O_R won by resignation"]

1. e4 {[%clk 0:02:54.1]} 1... c5 {[%clk 0:02:57.4]} 2. Nf3 {[%clk 0:02:54.7]}
2... d6 {[%clk 0:02:57.7]} 3. d4 {[%clk 0:02:55.3]} 3... cxd4 {[%clk 0:02:58.6]}
4. Nxd4 {[%clk 0:02:56.2]} 4... Nf6 {[%clk 0:02:59.1]} 5. Nc3 {[%clk 0:02:56.9]}
5... a6 {[%clk 0:02:59.8]} 6. Bc4 {[%clk 0:02:57.4]} 6... e6 {[%clk 0:02:59.8]}
7. Bb3 {[%clk 0:02:57.9]} 7... b5 {[%clk 0:02:59.9]} 8. f3 {[%clk 0:02:57.6]}
8... Be7 {[%clk 0:02:52.6]} 9. Be3 {[%clk 0:02:58.2]} 9... O-O {[%clk
0:02:52.2]} 10. Qd2 {[%clk 0:02:58.9]} 10... Qc7 {[%clk 0:02:46]} 11. g4 {[%clk
0:02:55.9]} 11... Nc6 {[%clk 0:02:44.7]} 12. g5 {[%clk 0:02:54.2]} 12... Nxd4
{[%clk 0:02:43.2]} 13. Bxd4 {[%clk 0:02:43.6]} 13... Nd7 {[%clk 0:02:43.7]} 14.
h4 {[%clk 0:02:43.6]} 14... Ne5 {[%clk 0:02:34.2]} 15. Qe2 {[%clk 0:02:05.9]}
15... b4 {[%clk 0:02:24.5]} 16. Na4 {[%clk 0:01:52]} 16... Rb8 {[%clk
0:02:17.1]} 17. f4 {[%clk 0:01:43.1]} 17... Nc6 {[%clk 0:01:55.2]} 18. Be3
{[%clk 0:01:34.2]} 18... Na5 {[%clk 0:01:40.6]} 19. O-O-O {[%clk 0:01:24.5]}
19... Bd7 {[%clk 0:01:36.5]} 20. Qxa6 {[%clk 0:01:00.7]} 20... Bxa4 {[%clk
0:01:30.6]} 21. Bxa4 {[%clk 0:00:58.3]} 21... Nc4 {[%clk 0:01:22.1]} 22. Bf2
{[%clk 0:00:41.8]} 22... Ra8 {[%clk 0:01:14.8]} 23. Qb5 {[%clk 0:00:17.8]} 23...
Rfb8 {[%clk 0:01:06.7]} 24. Qc6 {[%clk 0:00:18]} 24... Qxc6 {[%clk 0:01:06.9]}
25. Bxc6 {[%clk 0:00:18.9]} 25... Rxa2 {[%clk 0:01:07.3]} 26. Kb1 {[%clk
0:00:12.4]} 26... Rxb2+ {[%clk 0:01:07.3]} 27. Kc1 {[%clk 0:00:12.9]} 27... Ra2
{[%clk 0:01:07.5]} 28. Kb1 {[%clk 0:00:12.8]} 28... Ra6 {[%clk 0:01:06.7]} 29.
Bd7 {[%clk 0:00:11.5]} 29... Rba8 {[%clk 0:01:04.2]} 30. Bd4 {[%clk 0:00:11.4]}
30... e5 {[%clk 0:01:01]} 31. Bb5 {[%clk 0:00:11.3]} 31... Na3+ {[%clk
0:01:00.9]} 0-1

[Event "Late-Titled-Tuesday-Blitz-February-06-2024"]
[Site "Chess.com"]
[Date "2024.02.06"]
[Round "5"]
[White "IraZyne"]
[Black "cthake"]
[Result "1-0"]
[WhiteElo "2321"]
[BlackElo "1807"]
[TimeControl "180+1"]
[EndTime "14:54:18 PST"]
[Termination "IraZyne won on time"]

1. e4 {[%clk 0:03:00.9]} 1... e6 {[%clk 0:02:58.7]} 2. d4 {[%clk 0:03:00]} 2...
d5 {[%clk 0:02:58.4]} 3. exd5 {[%clk 0:03:00]} 3... exd5 {[%clk 0:02:57.6]} 4.
Nf3 {[%clk 0:03:00.5]} 4... Nf6 {[%clk 0:02:56.4]} 5. Bd3 {[%clk 0:02:58.6]}
5... Nc6 {[%clk 0:02:51.7]} 6. O-O {[%clk 0:02:57.6]} 6... Be6 {[%clk
0:02:51.2]} 7. Bg5 {[%clk 0:02:53]} 7... Be7 {[%clk 0:02:45.1]} 8. c3 {[%clk
0:02:53]} 8... Qd7 {[%clk 0:02:44.6]} 9. Nbd2 {[%clk 0:02:47.3]} 9... h6 {[%clk
0:02:44.2]} 10. Bf4 {[%clk 0:02:45.1]} 10... g5 {[%clk 0:02:42.7]} 11. Ne5
{[%clk 0:02:44.7]} 11... Nxe5 {[%clk 0:02:39.8]} 12. Bxe5 {[%clk 0:02:44.7]}
12... O-O-O {[%clk 0:02:39.5]} 13. b4 {[%clk 0:02:36.2]} 13... Rhg8 {[%clk
0:02:38.6]} 14. a4 {[%clk 0:02:34.6]} 14... Ne4 {[%clk 0:02:19.8]} 15. Nxe4
{[%clk 0:02:30.5]} 15... dxe4 {[%clk 0:02:19.6]} 16. Bxe4 {[%clk 0:02:30.6]}
16... f5 {[%clk 0:02:19.3]} 17. Bc2 {[%clk 0:02:24]} 17... Bc4 {[%clk 0:01:59]}
18. Re1 {[%clk 0:02:23]} 18... f4 {[%clk 0:01:58.8]} 19. Bb3 {[%clk 0:02:20.5]}
19... Bxb3 {[%clk 0:01:49.3]} 20. Qxb3 {[%clk 0:02:20.2]} 20... Rdf8 {[%clk
0:01:34.3]} 21. b5 {[%clk 0:02:13.7]} 21... Qg4 {[%clk 0:01:16.9]} 22. Qc4
{[%clk 0:02:10.7]} 22... Bd8 {[%clk 0:01:16.5]} 23. f3 {[%clk 0:02:02.2]} 23...
Qd7 {[%clk 0:01:10.2]} 24. a5 {[%clk 0:02:01.6]} 24... g4 {[%clk 0:01:04.5]} 25.
Rf1 {[%clk 0:02:01.7]} 25... g3 {[%clk 0:00:55.8]} 26. h3 {[%clk 0:01:56.6]}
26... Rg6 {[%clk 0:00:48.5]} 27. Qc5 {[%clk 0:01:36.5]} 27... Qe7 {[%clk
0:00:33.8]} 28. Qxa7 {[%clk 0:01:33.1]} 28... Kd7 {[%clk 0:00:33.8]} 29. Rae1
{[%clk 0:01:29.2]} 29... Qa3 {[%clk 0:00:15.2]} 30. b6 {[%clk 0:01:24.7]} 30...
Rc6 {[%clk 0:00:10.1]} 31. Qxb7 {[%clk 0:01:22.7]} 31... Qxc3 {[%clk 0:00:09.3]}
32. bxc7 {[%clk 0:01:19]} 32... Bxc7 {[%clk 0:00:08.3]} 33. a6 {[%clk
0:01:10.9]} 33... Rb8 {[%clk 0:00:05.5]} 34. Qa7 {[%clk 0:01:10.4]} 34... Qa5
{[%clk 0:00:01.9]} 35. d5 {[%clk 0:01:06.9]} 1-0

[Event "Late-Titled-Tuesday-Blitz-February-06-2024"]
[Site "Chess.com"]
[Date "2024.02.06"]
[Round "5"]
[White "Chempiblinka"]
[Black "Bryanl106"]
[Result "1/2-1/2"]
[WhiteElo "2354"]
[BlackElo "2540"]
[TimeControl "180+1"]
[EndTime "14:54:24 PST"]
[Termination "Game drawn by repetition"]

1. Nf3 {[%clk 0:03:00.9]} 1... Nf6 {[%clk 0:02:59.4]} 2. g3 {[%clk 0:03:01.2]}
2... g6 {[%clk 0:02:59.6]} 3. Bg2 {[%clk 0:03:01.8]} 3... Bg7 {[%clk 0:03:00.5]}
4. O-O {[%clk 0:03:01.3]} 4... O-O {[%clk 0:03:01.4]} 5. c4 {[%clk 0:03:01.7]}
5... d6 {[%clk 0:03:01.6]} 6. d4 {[%clk 0:03:01.1]} 6... Nc6 {[%clk 0:02:59]} 7.
Nc3 {[%clk 0:02:59]} 7... Bg4 {[%clk 0:02:58.1]} 8. e3 {[%clk 0:02:55.1]} 8...
e5 {[%clk 0:02:55.2]} 9. h3 {[%clk 0:02:39.2]} 9... Bxf3 {[%clk 0:02:52]} 10.
Bxf3 {[%clk 0:02:39.7]} 10... Nd7 {[%clk 0:02:51.7]} 11. d5 {[%clk 0:02:14]}
11... Ne7 {[%clk 0:02:50.9]} 12. Bg2 {[%clk 0:02:09.9]} 12... f5 {[%clk
0:02:49.4]} 13. f4 {[%clk 0:01:29.7]} 13... e4 {[%clk 0:02:45.1]} 14. Rb1 {[%clk
0:01:18.8]} 14... c5 {[%clk 0:02:42.9]} 15. dxc6 {[%clk 0:01:05.4]} 15... Nxc6
{[%clk 0:02:41.4]} 16. Qxd6 {[%clk 0:01:05.8]} 16... Nb6 {[%clk 0:02:41.6]} 17.
Qc5 {[%clk 0:00:51.6]} 17... Qe7 {[%clk 0:02:15.5]} 18. Qxe7 {[%clk 0:00:49.6]}
18... Nxe7 {[%clk 0:02:16.4]} 19. Nb5 {[%clk 0:00:35.4]} 19... Nxc4 {[%clk
0:02:12.2]} 20. b3 {[%clk 0:00:35.8]} 20... Nb6 {[%clk 0:02:09.9]} 21. Nd6
{[%clk 0:00:36.2]} 21... Rab8 {[%clk 0:02:08.5]} 22. Ba3 {[%clk 0:00:36.5]}
22... Ned5 {[%clk 0:02:04.6]} 23. Rfe1 {[%clk 0:00:36.8]} 23... a6 {[%clk
0:02:02.5]} 24. Bf1 {[%clk 0:00:36.8]} 24... Rfd8 {[%clk 0:02:01.4]} 25. Rbc1
{[%clk 0:00:32]} 25... Bf8 {[%clk 0:02:00.6]} 26. Nc4 {[%clk 0:00:17.2]} 26...
Nxc4 {[%clk 0:01:58.1]} 27. Bxf8 {[%clk 0:00:17.9]} 27... Ncxe3 {[%clk
0:01:56.7]} 28. Bc5 {[%clk 0:00:16.9]} 28... Nxf1 {[%clk 0:01:56.3]} 29. Kxf1
{[%clk 0:00:17.1]} 29... Rbc8 {[%clk 0:01:57.2]} 30. Ba3 {[%clk 0:00:15]} 30...
b5 {[%clk 0:01:55.9]} 31. Bb2 {[%clk 0:00:13.8]} 31... Nb4 {[%clk 0:01:56.2]}
32. Rxc8 {[%clk 0:00:12.7]} 32... Rxc8 {[%clk 0:01:56.5]} 33. Be5 {[%clk
0:00:13.2]} 33... Nd3 {[%clk 0:01:56.5]} 34. Rd1 {[%clk 0:00:12.2]} 34... Rc2
{[%clk 0:01:56.5]} 35. a4 {[%clk 0:00:11.8]} 35... Rf2+ {[%clk 0:01:55.9]} 36.
Kg1 {[%clk 0:00:12]} 36... Ra2 {[%clk 0:01:56.1]} 37. axb5 {[%clk 0:00:11.9]}
37... axb5 {[%clk 0:01:57]} 38. Bd6 {[%clk 0:00:11.6]} 38... e3 {[%clk
0:01:53.4]} 39. Rxd3 {[%clk 0:00:11.3]} 39... Ra1+ {[%clk 0:01:53]} 40. Kg2
{[%clk 0:00:10.7]} 40... e2 {[%clk 0:01:53.5]} 41. Bb4 {[%clk 0:00:11.2]} 41...
e1=Q {[%clk 0:01:50.1]} 42. Bxe1 {[%clk 0:00:11.8]} 42... Rxe1 {[%clk
0:01:50.6]} 43. Rd5 {[%clk 0:00:12]} 43... b4 {[%clk 0:01:50.2]} 44. Rb5 {[%clk
0:00:12.2]} 44... Re4 {[%clk 0:01:49.7]} 45. Kf2 {[%clk 0:00:12.6]} 45... Kg7
{[%clk 0:01:48.6]} 46. Rb6 {[%clk 0:00:13.2]} 46... h5 {[%clk 0:01:48.7]} 47.
Rb7+ {[%clk 0:00:13.1]} 47... Kf6 {[%clk 0:01:48.1]} 48. h4 {[%clk 0:00:13.6]}
48... Rd4 {[%clk 0:01:47.6]} 49. Rb5 {[%clk 0:00:13.8]} 49... Re4 {[%clk
0:01:45.9]} 50. Rb6+ {[%clk 0:00:13.9]} 50... Kg7 {[%clk 0:01:46.3]} 51. Kf3
{[%clk 0:00:13.1]} 51... Rd4 {[%clk 0:01:45.4]} 52. Ke3 {[%clk 0:00:13.4]} 52...
Re4+ {[%clk 0:01:44.5]} 53. Kf3 {[%clk 0:00:13.7]} 53... Kh6 {[%clk 0:01:44.6]}
54. Rb5 {[%clk 0:00:12.9]} 54... Kh7 {[%clk 0:01:44.3]} 55. Rb6 {[%clk
0:00:13.3]} 55... Kg7 {[%clk 0:01:44.6]} 56. Kf2 {[%clk 0:00:14]} 56... Kf7
{[%clk 0:01:44.8]} 57. Kf3 {[%clk 0:00:14.7]} 57... Rd4 {[%clk 0:01:43.3]} 58.
Ke3 {[%clk 0:00:14.8]} 58... Re4+ {[%clk 0:01:43.3]} 59. Kf3 {[%clk 0:00:15.2]}
59... Kg7 {[%clk 0:01:42.5]} 60. Kf2 {[%clk 0:00:14.6]} 60... Rd4 {[%clk
0:01:41.6]} 61. Ke3 {[%clk 0:00:15.1]} 61... Re4+ {[%clk 0:01:42]} 62. Kf3
{[%clk 0:00:15.4]} 1/2-1/2

[Event "Late-Titled-Tuesday-Blitz-February-06-2024"]
[Site "Chess.com"]
[Date "2024.02.06"]
[Round "5"]
[White "AlexeiShirov"]
[Black "ValeriyGrinev"]
[Result "1-0"]
[WhiteElo "2793"]
[BlackElo "2546"]
[TimeControl "180+1"]
[EndTime "14:54:29 PST"]
[Termination "AlexeiShirov won by resignation"]

1. e4 {[%clk 0:02:59.1]} 1... c5 {[%clk 0:03:00.6]} 2. Nf3 {[%clk 0:02:59.2]}
2... e6 {[%clk 0:03:01.2]} 3. d4 {[%clk 0:02:59.2]} 3... cxd4 {[%clk 0:03:01.9]}
4. Nxd4 {[%clk 0:02:59.4]} 4... a6 {[%clk 0:03:02.6]} 5. c4 {[%clk 0:02:58.8]}
5... Nf6 {[%clk 0:03:02.2]} 6. Nc3 {[%clk 0:02:58.7]} 6... Qc7 {[%clk
0:03:01.7]} 7. a3 {[%clk 0:02:56.1]} 7... b6 {[%clk 0:03:01.3]} 8. Be3 {[%clk
0:02:54.1]} 8... Bb7 {[%clk 0:03:01.7]} 9. f3 {[%clk 0:02:52]} 9... d6 {[%clk
0:03:01.1]} 10. Rc1 {[%clk 0:02:47.2]} 10... Be7 {[%clk 0:03:00.6]} 11. g4
{[%clk 0:02:32.1]} 11... h6 {[%clk 0:02:44.9]} 12. h4 {[%clk 0:02:30.8]} 12...
Nbd7 {[%clk 0:02:39.7]} 13. Rg1 {[%clk 0:02:27.5]} 13... Ne5 {[%clk 0:02:29.5]}
14. g5 {[%clk 0:02:26.1]} 14... hxg5 {[%clk 0:02:29.1]} 15. hxg5 {[%clk
0:02:26]} 15... Nh5 {[%clk 0:02:14.7]} 16. f4 {[%clk 0:02:18.5]} 16... Nd7
{[%clk 0:00:57.4]} 17. f5 {[%clk 0:02:00.9]} 17... Nc5 {[%clk 0:00:51.8]} 18.
fxe6 {[%clk 0:01:54.4]} 18... fxe6 {[%clk 0:00:40.4]} 19. b4 {[%clk 0:01:53.3]}
19... O-O-O {[%clk 0:00:39.3]} 20. Qg4 {[%clk 0:01:43.3]} 20... Nd7 {[%clk
0:00:29.3]} 21. Nxe6 {[%clk 0:01:40.6]} 21... Ne5 {[%clk 0:00:29.7]} 22. Qh3
{[%clk 0:01:21.5]} 22... Qd7 {[%clk 0:00:30.2]} 23. Nxd8 {[%clk 0:01:19.5]}
23... Bxd8 {[%clk 0:00:30.5]} 24. Qxd7+ {[%clk 0:01:14.6]} 24... Kxd7 {[%clk
0:00:31.4]} 25. Be2 {[%clk 0:01:13.9]} 25... g6 {[%clk 0:00:30.6]} 26. Nd5
{[%clk 0:01:12.2]} 26... Bxd5 {[%clk 0:00:29.7]} 27. cxd5 {[%clk 0:01:10.4]}
27... b5 {[%clk 0:00:30.1]} 28. Bd4 {[%clk 0:01:04.1]} 28... Re8 {[%clk
0:00:30.4]} 29. Bxh5 {[%clk 0:00:44.5]} 29... gxh5 {[%clk 0:00:26.6]} 30. Bxe5
{[%clk 0:00:43.5]} 30... Rxe5 {[%clk 0:00:26.2]} 31. g6 {[%clk 0:00:41.9]} 31...
Rxe4+ {[%clk 0:00:26.4]} 32. Kd2 {[%clk 0:00:39.9]} 32... Re8 {[%clk 0:00:21.9]}
33. Rcf1 {[%clk 0:00:38.8]} 33... Rg8 {[%clk 0:00:20.5]} 34. Rf7+ {[%clk
0:00:38.5]} 34... Ke8 {[%clk 0:00:21.1]} 35. Re1+ {[%clk 0:00:37.3]} 1-0

[Event "Late-Titled-Tuesday-Blitz-February-06-2024"]
[Site "Chess.com"]
[Date "2024.02.06"]
[Round "5"]
[White "TheAlienParty"]
[Black "Canal_Showdrez"]
[Result "1-0"]
[WhiteElo "2381"]
[BlackElo "2045"]
[TimeControl "180+1"]
[EndTime "14:54:29 PST"]
[Termination "TheAlienParty won by checkmate"]

1. c4 {[%clk 0:02:27.9]} 1... Nf6 {[%clk 0:02:56.4]} 2. Nc3 {[%clk 0:02:27.5]}
2... g6 {[%clk 0:02:55.3]} 3. g3 {[%clk 0:02:25.8]} 3... Bg7 {[%clk 0:02:55.2]}
4. Bg2 {[%clk 0:02:25.8]} 4... O-O {[%clk 0:02:55.2]} 5. e3 {[%clk 0:02:25.2]}
5... e5 {[%clk 0:02:54.6]} 6. Nge2 {[%clk 0:02:25]} 6... d6 {[%clk 0:02:53.6]}
7. O-O {[%clk 0:02:24.8]} 7... c6 {[%clk 0:02:53.2]} 8. d4 {[%clk 0:02:23.4]}
8... exd4 {[%clk 0:02:51.4]} 9. Nxd4 {[%clk 0:02:22.9]} 9... Nbd7 {[%clk
0:02:48.2]} 10. b3 {[%clk 0:02:22.2]} 10... Nc5 {[%clk 0:02:30.2]} 11. Bb2
{[%clk 0:02:21.3]} 11... Ne6 {[%clk 0:02:29.8]} 12. Qd2 {[%clk 0:02:18.3]} 12...
Nxd4 {[%clk 0:02:27.8]} 13. Qxd4 {[%clk 0:02:13]} 13... Ng4 {[%clk 0:02:26]} 14.
Qd2 {[%clk 0:02:12.6]} 14... Qe7 {[%clk 0:02:11.7]} 15. Rad1 {[%clk 0:02:11.8]}
15... Rd8 {[%clk 0:02:10.7]} 16. Ba3 {[%clk 0:02:08.9]} 16... c5 {[%clk
0:02:04.1]} 17. Nd5 {[%clk 0:02:07.4]} 17... Qf8 {[%clk 0:01:44.1]} 18. Nc7
{[%clk 0:02:06.7]} 18... Rb8 {[%clk 0:01:43.9]} 19. Bxc5 {[%clk 0:02:06.1]}
19... Ne5 {[%clk 0:00:55.4]} 20. Bxd6 {[%clk 0:02:02.9]} 20... Rxd6 {[%clk
0:00:56.3]} 21. Qxd6 {[%clk 0:02:02.3]} 21... Bg4 {[%clk 0:00:57]} 22. Qxf8+
{[%clk 0:01:52.1]} 22... Kxf8 {[%clk 0:00:54.3]} 23. f3 {[%clk 0:01:47.2]} 23...
Bf5 {[%clk 0:00:48.3]} 24. e4 {[%clk 0:01:45.5]} 24... Bd7 {[%clk 0:00:47.5]}
25. f4 {[%clk 0:01:40.1]} 25... Bg4 {[%clk 0:00:46.2]} 26. fxe5 {[%clk
0:01:38.5]} 26... Bxd1 {[%clk 0:00:46.2]} 27. Rxd1 {[%clk 0:01:37.8]} 27... Bxe5
{[%clk 0:00:47.1]} 28. Rd7 {[%clk 0:01:31.7]} 28... b6 {[%clk 0:00:41.1]} 29.
Na6 {[%clk 0:01:28.5]} 29... Rc8 {[%clk 0:00:39.3]} 30. Bh3 {[%clk 0:01:26.4]}
30... Re8 {[%clk 0:00:28.9]} 31. Kf2 {[%clk 0:01:18.5]} 31... Kg7 {[%clk
0:00:25.1]} 32. Kf3 {[%clk 0:01:16.6]} 32... h6 {[%clk 0:00:23.7]} 33. Rxa7
{[%clk 0:01:11.9]} 33... Kf6 {[%clk 0:00:22.7]} 34. Nb4 {[%clk 0:01:09.5]} 34...
Kg5 {[%clk 0:00:20.4]} 35. Nd5 {[%clk 0:01:08.3]} 35... f5 {[%clk 0:00:19.9]}
36. exf5 {[%clk 0:01:03]} 36... gxf5 {[%clk 0:00:20.4]} 37. Ra6 {[%clk
0:01:01.2]} 37... b5 {[%clk 0:00:16.6]} 38. cxb5 {[%clk 0:00:59.1]} 38... Rd8
{[%clk 0:00:17.2]} 39. Nf4 {[%clk 0:00:58]} 39... Rc8 {[%clk 0:00:12.6]} 40.
Rg6# {[%clk 0:00:56.8]} 1-0

[Event "Late-Titled-Tuesday-Blitz-February-06-2024"]
[Site "Chess.com"]
[Date "2024.02.06"]
[Round "5"]
[White "andrzej"]
[Black "GothamChess"]
[Result "0-1"]
[WhiteElo "2444"]
[BlackElo "2699"]
[TimeControl "180+1"]
[EndTime "14:54:32 PST"]
[Termination "GothamChess won by resignation"]

1. e4 {[%clk 0:03:00.9]} 1... d5 {[%clk 0:02:59.3]} 2. exd5 {[%clk 0:03:01]}
2... Qxd5 {[%clk 0:03:00.2]} 3. Nc3 {[%clk 0:03:01.2]} 3... Qa5 {[%clk
0:03:00.9]} 4. d4 {[%clk 0:03:01.5]} 4... Nf6 {[%clk 0:03:01.5]} 5. Nf3 {[%clk
0:03:01.7]} 5... Bf5 {[%clk 0:03:02.1]} 6. Bc4 {[%clk 0:03:01.3]} 6... e6 {[%clk
0:03:02.8]} 7. Bd2 {[%clk 0:03:01.7]} 7... Bb4 {[%clk 0:03:03.3]} 8. Ne5 {[%clk
0:02:53.6]} 8... O-O {[%clk 0:02:38.6]} 9. g4 {[%clk 0:02:53.1]} 9... Be4 {[%clk
0:02:34]} 10. f3 {[%clk 0:02:32.8]} 10... Bd5 {[%clk 0:02:31.9]} 11. Nxd5 {[%clk
0:02:23.4]} 11... exd5 {[%clk 0:02:24.2]} 12. Bd3 {[%clk 0:02:19.1]} 12... Qb6
{[%clk 0:02:10]} 13. c3 {[%clk 0:02:05.1]} 13... Bd6 {[%clk 0:02:09.4]} 14. Qb3
{[%clk 0:02:05.5]} 14... Nc6 {[%clk 0:01:59.7]} 15. Nxc6 {[%clk 0:01:57.6]}
15... bxc6 {[%clk 0:01:55.7]} 16. O-O {[%clk 0:01:43]} 16... c5 {[%clk 0:01:39]}
17. Qxb6 {[%clk 0:01:34.1]} 17... axb6 {[%clk 0:01:38.3]} 18. Bg5 {[%clk
0:01:24.1]} 18... cxd4 {[%clk 0:01:30.9]} 19. Bxf6 {[%clk 0:01:21.4]} 19... gxf6
{[%clk 0:01:30.3]} 20. cxd4 {[%clk 0:01:21.7]} 20... Ra4 {[%clk 0:01:29.9]} 21.
Rfd1 {[%clk 0:01:21]} 21... Rxd4 {[%clk 0:01:29.9]} 22. Bxh7+ {[%clk 0:01:20.2]}
22... Kxh7 {[%clk 0:01:30.8]} 23. Rxd4 {[%clk 0:01:20.2]} 23... Bc5 {[%clk
0:01:31.6]} 24. Rd1 {[%clk 0:01:20.6]} 24... Ra8 {[%clk 0:01:27.6]} 25. Kf1
{[%clk 0:01:07.9]} 25... Bxd4 {[%clk 0:01:26.3]} 26. Rxd4 {[%clk 0:01:08.8]}
26... Rxa2 {[%clk 0:01:04.7]} 27. b4 {[%clk 0:01:08.7]} 27... Rb2 {[%clk
0:00:42.4]} 28. h4 {[%clk 0:00:57]} 28... c6 {[%clk 0:00:37.7]} 29. Ke1 {[%clk
0:00:53.4]} 29... b5 {[%clk 0:00:35.7]} 30. f4 {[%clk 0:00:45.7]} 30... Rc2
{[%clk 0:00:30.7]} 31. Rd2 {[%clk 0:00:38.7]} 31... Rc4 {[%clk 0:00:25.1]} 32.
Rb2 {[%clk 0:00:26]} 32... Rxf4 {[%clk 0:00:24.1]} 0-1